Cogmind - Beta 11.1 *** ADVENTURER MODE // 2022.11.18 @ 22:50:49 Player: Loganathor Result: Destroyed by G-47 Trooper with Particle Gun Performance ------------- Evolutions (3) 1500 Regions Visited (7) 1400 Robots Destroyed (65) 325 Value Destroyed (2388) 2388 Prototype IDs (2) 40 Alien Tech Used (0) 0 Bonus (0) 0 TOTAL SCORE: 5653 Bonus ------- None Cogmind --------- Core Integrity 0/700 Matter 6/300 Energy 100/100 System Corruption 0% Temperature Cool (9) Movement Core (1350) Ox26 Location -7/Lower Caves Parts ------- > --- POWER (1) -------- (None) > --- PROPULSION (4) --- (None) > --- UTILITY (4) ------ Huge Storage Unit > --- WEAPON (4) ------- (None) > --- INVENTORY (25) --- Improved Aluminum Leg VSS Leg Huge Storage Unit Target Analyzer Energy Filter Energy Filter Transmission Jammer Hardened Light Armor Plating Hardened Heavy Armor Plating Hardened Heavy Armor Plating Hardened Heavy Armor Plating Advanced Assault Cannon Advanced EMP Blaster Peak State ------------ > --- POWER ------------ Light Nuclear Core > --- PROPULSION ------- Light Treads Light Treads Armored Treads Armored Treads > --- UTILITY ---------- Heat Sink Huge Storage Unit Hardened Heavy Armor Plating > --- WEAPON ----------- Shock Rifle Particle Gun Minigun Advanced EMP Blaster > --- INVENTORY -------- Light Nuclear Core Improved Aluminum Leg VSS Leg Huge Storage Unit Target Analyzer Energy Filter Energy Filter Transmission Jammer Hardened Light Armor Plating Hardened Heavy Armor Plating Hardened Heavy Armor Plating Hardened Heavy Armor Plating Particle Gun Rocket Launcher Missile Launcher [Rating: 38] Favorites ----------- Power Light Deuterium Engine Engine Light Deuterium Engine Power Core Light Nuclear Core Propulsion Armored Treads Treads Armored Treads Leg Aluminum Leg Utility Huge Storage Unit Device Heat Sink Storage Huge Storage Unit Processor Advanced Targeting Computer Protection Hardened Light Armor Plating Weapon Particle Gun Energy Gun Particle Gun Ballistic Gun Minigun Ballistic Cannon Advanced Assault Cannon Launcher Missile Launcher Build | -11 -10 -10 -9 -8 -7 -7 -7 ------- Run | Scr Mat Min Mat Mat Fac Low Low Slots Evolved 6 | . . . 2 2 2 . . Power . | . . . . . . . . Propulsion 2 | . . . 2 . . . . Utility 2 | . . . . . 2 . . Weapon 2 | . . . . 2 . . . Parts Attached 78 | 6 3 6 28 22 3 9 1 Power 7 | 1 . . 4 1 . . 1 Engine 5 | 1 . . 4 . . . . Core 2 | . . . . 1 . . 1 Reactor . | . . . . . . . . Propulsion 28 | 2 1 1 11 7 . 6 . Treads 13 | . . . 3 6 . 4 . Leg 15 | 2 1 1 8 1 . 2 . Wheel . | . . . . . . . . Hover . | . . . . . . . . Flight . | . . . . . . . . Utility 17 | 1 1 2 8 4 1 . . Device 7 | . 1 2 2 2 . . . Storage 2 | 1 . . . 1 . . . Processor 2 | . . . 1 1 . . . Hackware . | . . . . . . . . Protection 6 | . . . 5 . 1 . . Artifact . | . . . . . . . . Weapon 26 | 2 1 3 5 10 2 3 . Energy Gun 11 | . . 1 5 5 . . . Energy Cannon . | . . . . . . . . Ballistic Gun 7 | 2 1 2 . 2 . . . Ballistic Cannon 2 | . . . . 1 . 1 . Launcher 6 | . . . . 2 2 2 . Special Weapon . | . . . . . . . . Impact Weapon . | . . . . . . . . Slashing Weapon . | . . . . . . . . Piercing Weapon . | . . . . . . . . Special Melee Weapon . | . . . . . . . . Unidentified Prototypes 2 | . . 1 . 1 . . . Parts Lost 16 | . . . 9 . . 4 3 Power 4 | . . . 2 . . 1 1 Propulsion 6 | . . . 4 . . 2 . Utility 2 | . . . 1 . . 1 . Weapon 4 | . . . 2 . . . 2 Highest Loss Streak 8 | . . . 8 . . 2 3 To Critical Strikes . | . . . . . . . . Average Slot Usage (%) 73 | . 87 84 85 91 92 70 22 Engine 5 | . 14 14 9 8 . . . Core 1 | . . . . . 7 5 . Treads 16 | . . . 1 29 30 26 . Leg 7 | . 26 28 33 . . . . Device 3 | . 4 14 7 . 7 6 . Storage 6 | . 14 1 . 8 7 7 7 Processor 2 | . . . 5 4 . . . Protection 3 | . . . 6 3 7 7 . Energy Gun 12 | . . 11 18 24 3 . . Ballistic Gun 5 | . 26 14 3 4 7 6 . Ballistic Cannon 1 | . . . . 2 . 5 . Launcher 6 | . . . . 4 19 3 14 Naked Turns . | . . . . . . . . Heaviest Build 125 | 12 13 21 21 106 125 125 90 Greatest Support 89 | 20 20 20 69 89 80 80 3 Greatest Overweight (x) 29 | . . 1 3 1 1 4 29 Average Overweight (x) 1 | . . . . . 1 1 28 Largest Inventory Capacity 25 | 8 8 8 5 25 25 25 25 Average Capacity 19 | 7 8 5 5 23 25 25 25 Most Carried 24 | 5 7 8 5 24 18 20 17 Average Carried 13 | 2 3 3 4 16 16 18 16 Final Capacity 25 | 8 8 5 5 25 25 25 25 Final Carried 20 | 2 7 4 4 20 17 17 16 Class Distribution -------------------- 56% | Mutant 18% | Gunner 15% | Tank 4% | Scavenger-Mutant Dominant Class ---------------- Mutant | -10/Materials Mutant | -10/Mines Mutant | -9/Materials Gunner | -8/Materials Tank | -7/Factory Mutant | -7/Lower Caves Mutant | -7/Lower Caves Resources | -11 -10 -10 -9 -8 -7 -7 -7 ----------- Run | Scr Mat Min Mat Mat Fac Low Low Matter Collected 1305 | 175 84 97 272 463 110 104 . Remotely . | . . . . . . . . Salvage Created 2301 | . 84 49 380 1269 392 127 . Parts 121 | . 2 2 27 70 14 6 . Haulers Intercepted . | . . . . . . . . Recyclers Shooed 1 | . . . . . 1 . . Parts Field Recycled . | . . . . . . . . Retrieved Matter . | . . . . . . . . Parts Self-Destructed 5 | . . . . . . 2 3 Prevented 3 | . . . . . . 2 1 Kills | -11 -10 -10 -9 -8 -7 -7 -7 ------- Run | Scr Mat Min Mat Mat Fac Low Low Combat Hostiles Destroyed 54 | . 2 1 13 25 8 5 . Guns 35 | . 2 1 12 19 1 . . Cannons 4 | . . . . 4 . . . AOE 13 | . . . . 2 6 5 . Classes Destroyed 12 | . 1 . 5 3 3 . . Worker 2 | . . . 1 1 . . . Builder 1 | . . . . . 1 . . Tunneler 2 | . . . . 2 . . . Operator 1 | . . . 1 . . . . Watcher 5 | . . . 1 3 1 . . Swarmer 11 | . . . 5 3 . 3 . Grunt 25 | . 2 1 5 12 4 1 . Brawler 1 | . . . . . 1 . . Duelist 1 | . . . . 1 . . . Sentry 14 | . . . 3 8 2 1 . Hunter 1 | . . . . 1 . . . Programmer 1 | . . . . . 1 . . Best Kill Streak 7 | . 2 1 5 5 7 3 . Combat Bots Only 5 | . 2 1 5 4 5 3 . Max Kills in Single Turn 4 | . 1 1 2 3 4 3 . Gunslinging 1 | . . . 1 1 . . . Exploded 3 | . . . . 1 3 3 . Melee . | . . . . . . . . Uniques/NPCs Destroyed . | . . . . . . . . Combat | -11 -10 -10 -9 -8 -7 -7 -7 -------- Run | Scr Mat Min Mat Mat Fac Low Low Damage Taken 4716 | . 107 33 1146 939 434 1071 986 Core 1207 | . 23 . 218 265 28 75 598 Absorbed by Shields . | . . . . . . . . Regen/Repaired (Parts) 212 | . 26 . 147 39 . . . Core Remaining (%) 71 | 100 . 90 45 51 . . . Volleys Fired 122 | . 9 2 43 42 16 10 . Largest 4 | . 2 2 2 4 4 4 . Hottest 205 | . 40 70 130 205 176 130 . Shots Fired 309 | . 18 4 73 150 46 18 . Gun 256 | . 18 4 73 130 24 7 . Cannon 16 | . . . . 14 . 2 . Launcher 37 | . . . . 6 22 9 . Special . | . . . . . . . . Kinetic 94 | . 18 2 13 36 16 9 . Thermal 147 | . . 2 60 81 4 . . Explosive 22 | . . . . . 14 8 . Electromagnetic 46 | . . . . 33 12 1 . Robot Hit Streak 29 | . 4 7 29 22 18 9 . Robot Miss Streak 4 | . 3 . 4 3 2 2 . Penetration Max . | . . . . . . . . Secondary Targets 5 | . 1 . 2 2 . . . Max Gunslinging Chain 1 | . 1 . 1 1 . . . Shots Hit Robots 220 | . 12 4 60 105 28 11 . Core Hits 169 | . 5 2 51 81 24 6 . Critical Kills 1 | . . . . 1 . . . Critical Parts Destroyed . | . . . . . . . . Critical Strikes 5 | . . . 2 3 . . . Burn 3 | . . . 2 1 . . . Destroy 1 | . . . . 1 . . . Blast 1 | . . . . 1 . . . Melee Attacks . | . . . . . . . . Impact . | . . . . . . . . Slashing . | . . . . . . . . Piercing . | . . . . . . . . Sneak Attacks . | . . . . . . . . Combat Hostiles . | . . . . . . . . Follow-up Attacks . | . . . . . . . . Damage Inflicted 4588 | . 144 51 841 2042 1087 423 . Guns 2735 | . 144 51 841 1341 265 93 . Cannons 214 | . . . . 188 . 26 . Explosions 1638 | . . . . 512 822 304 . Melee . | . . . . . . . . Ramming 1 | . . . . 1 . . . Kinetic 924 | . 144 26 148 282 205 119 . Thermal 1729 | . . 25 693 980 31 . . Explosive 857 | . . . . . 553 304 . Electromagnetic 1077 | . . . . 779 298 . . Impact . | . . . . . . . . Slashing . | . . . . . . . . Piercing . | . . . . . . . . Highest Corruption . | . . . . . . . . Average Corruption . | . . . . . . . . Corruption Purged . | . . . . . . . . Corruption Blocked . | . . . . . . . . Overload Shots . | . . . . . . . . Overflow Damage 43 | . . . 2 2 17 22 . Projectiles . | . . . . . . . . Explosions 43 | . . . 2 2 17 22 . Melee . | . . . . . . . . Knockbacks 1 | . . . . 1 . . . Impact . | . . . . . . . . Kinetic 1 | . . . . 1 . . . Secondary . | . . . . . . . . Self-Inflicted Damage 185 | . . . 144 21 10 10 . Shots 5 | . . . 2 1 1 1 . Rammed 1 | . . . . 1 . . . Targets Rammed 1 | . . . . 1 . . . Kicked . | . . . . . . . . Crushed . | . . . . . . . . Highest Temperature 556 | . 27 15 517 556 222 311 11 Average Temperature 136 | . 13 7 119 175 64 82 6 Received Heat Transfer 2619 | . 114 24 567 288 192 651 783 Effects 29 | . . . 1 25 . 3 . Shutdowns 5 | . . . 1 4 . . . Energy Bleed 2 | . . . . 2 . . . Interference 9 | . . . . 6 . 3 . Matter Decay 1 | . . . . 1 . . . Damage (minor) 1 | . . . . 1 . . . Damage (major) 8 | . . . . 8 . . . Damage (core) 3 | . . . . 3 . . . Siege Activations . | . . . . . . . . Robots Corrupted 1 | . . . . . 1 . . Combat Hostiles 1 | . . . . . 1 . . Parts Fried 2 | . . . . . 2 . . Impact Corruptions . | . . . . . . . . Robots Melted 1 | . . . 1 . . . . Combat Hostiles 1 | . . . 1 . . . . Parts Melted 8 | . . . 4 4 . . . Heat Transferred 3524 | . . 74 1255 2121 74 . . Parts Sabotaged . | . . . . . . . . Parts Stolen . | . . . . . . . . Parts Stripped . | . . . . . . . . Power Chain Reactions 4 | . . . . 2 1 1 . Missiles Intercepted . | . . . . . . . . Alert | -11 -10 -10 -9 -8 -7 -7 -7 ------- Run | Scr Mat Min Mat Mat Fac Low Low Peak Influence 291 | . 66 21 291 231 181 . . Initial 54 | . . 21 6 54 . . . Average 86 | . 51 19 117 91 84 . . Maximum Alert Level 1 | . . . 1 1 . . . Low Security (%) 89 | 100 100 100 84 86 100 . . Level 1 10 | . . . 15 13 . . . Level 2 . | . . . . . . . . Level 3 . | . . . . . . . . Level 4 . | . . . . . . . . Level 5 . | . . . . . . . . High Security . | . . . . . . . . Max Security . | . . . . . . . . Squads Dispatched 8 | . . . 2 3 3 . . Investigation 3 | . . . . 3 . . . Extermination 1 | . . . . . 1 . . Reinforcement 3 | . . . 2 . 1 . . Assault . | . . . . . . . . Garrison 1 | . . . . . 1 . . Intercept . | . . . . . . . . Searches Triggered . | . . . . . . . . Construction Impeded 1 | . . . . . 1 . . Haulers Reinforced . | . . . . . . . . Active Scanning Responses . | . . . . . . . . Cargo Convoy Interrupts . | . . . . . . . . Stealth | -11 -10 -10 -9 -8 -7 -7 -7 --------- Run | Scr Mat Min Mat Mat Fac Low Low Distress Signals 1 | . . . 1 . . . . Communications Jammed . | . . . . . . . . Distress Signals . | . . . . . . . . Times Spotted 81 | . 3 6 22 30 11 5 4 Peak Tracking Total 8 | . 2 2 8 4 5 3 4 Tactical Retreats 5 | . . . 1 1 1 2 . Traps | -11 -10 -10 -9 -8 -7 -7 -7 ------- Run | Scr Mat Min Mat Mat Fac Low Low Traps Triggered 4 | . . . 1 1 1 1 . Indirectly . | . . . . . . . . Trap Hack Attempts . | . . . . . . . . Triggered . | . . . . . . . . Disarmed . | . . . . . . . . Reprogrammed . | . . . . . . . . Reused . | . . . . . . . . Traps Extracted . | . . . . . . . . Installed . | . . . . . . . . Triggered 1 | . . . . . . 1 . Machines | -11 -10 -10 -9 -8 -7 -7 -7 ---------- Run | Scr Mat Min Mat Mat Fac Low Low Machines Disabled 11 | . . . 2 5 4 . . Max in Single Turn 3 | . . . 2 3 2 . . Machines Sabotaged . | . . . . . . . . Garrisons Compromised . | . . . . . . . . Overloaded Fab Kills . | . . . . . . . . Hacking | -11 -10 -10 -9 -8 -7 -7 -7 --------- Run | Scr Mat Min Mat Mat Fac Low Low Machines Accessed 9 | . 1 1 2 5 . . . Terminals 4 | . . . 1 3 . . . Fabricators . | . . . . . . . . Repair Stations 3 | . 1 . 1 1 . . . Recycling Units . | . . . . . . . . Scanalyzers 1 | . . . . 1 . . . Garrison Access . | . . . . . . . . Total Hacks 33 | . 4 1 10 18 . . . Successful 29 | . 4 1 9 15 . . . Failed 4 | . . . 1 3 . . . Catastrophic 1 | . . . . 1 . . . Database Lockouts . | . . . . . . . . Manual . | . . . . . . . . Terminals 11 | . . . 1 10 . . . Fabricators . | . . . . . . . . Repair Stations 16 | . 4 . 9 3 . . . Recycling Units . | . . . . . . . . Scanalyzers 5 | . . . . 5 . . . Garrison Access . | . . . . . . . . Terminal Hacks 10 | . . 1 1 8 . . . Record 9 | . . . 1 8 . . . Open Door 1 | . . 1 . . . . . Fabricator Hacks . | . . . . . . . . Repair Station Hacks 14 | . 4 . 8 2 . . . Scan Component 7 | . 2 . 4 1 . . . Repair 7 | . 2 . 4 1 . . . Recycling Unit Hacks . | . . . . . . . . Scanalyzer 5 | . . . . 5 . . . Insert Component 3 | . . . . 3 . . . Analyze 2 | . . . . 2 . . . Garrison Access Hacks . | . . . . . . . . Unauthorized Hacks . | . . . . . . . . Terminals . | . . . . . . . . Fabricators . | . . . . . . . . Repair Stations . | . . . . . . . . Recycling Units . | . . . . . . . . Scanalyzers . | . . . . . . . . Garrison Access . | . . . . . . . . Data Cores Recovered . | . . . . . . . . Used . | . . . . . . . . Hacking Detections 3 | . . . 1 2 . . . Full Trace Events 2 | . . . . 2 . . . Feedback Events . | . . . . . . . . Feedback Blocked . | . . . . . . . . Robot Schematics Acquired . | . . . . . . . . Robots Built . | . . . . . . . . Authchips . | . . . . . . . . Time . | . . . . . . . . Total Robot Build Rating . | . . . . . . . . Part Schematics Acquired 2 | . . . . 2 . . . Parts Built . | . . . . . . . . Authchips . | . . . . . . . . Time . | . . . . . . . . Total Part Build Rating . | . . . . . . . . Parts Repaired 7 | . 2 . 4 1 . . . Time 216 | . 52 . 104 60 . . . Parts Recycled . | . . . . . . . . Recycled Matter . | . . . . . . . . Retrieved Matter . | . . . . . . . . Retrieved Components . | . . . . . . . . Parts Scanalyzed 2 | . . . . 2 . . . Part Schematics Acquired 2 | . . . . 2 . . . Parts Damaged 1 | . . . . 1 . . . Bothacking | -11 -10 -10 -9 -8 -7 -7 -7 ------------ Run | Scr Mat Min Mat Mat Fac Low Low Used RIF Installer . | . . . . . . . . Robots Hacked . | . . . . . . . . Non-combat . | . . . . . . . . Combat . | . . . . . . . . Robot Hacks Applied . | . . . . . . . . Relay Couplers Released . | . . . . . . . . Fabnet Peak Effective % . | . . . . . . . . Robots Rewired . | . . . . . . . . Allies Hacked . | . . . . . . . . Hacks Repelled . | . . . . . . . . Allies | -11 -10 -10 -9 -8 -7 -7 -7 -------- Run | Scr Mat Min Mat Mat Fac Low Low Total Allies 1 | . . . . . . . 1 Largest Group 1 | . . . . . . . 1 Highest-Rated Group 106 | . . . . . . . 106 Highest-Rated Ally 106 | . . . . . . . 106 Total Orders . | . . . . . . . . Ally Attacks . | . . . . . . . . Total Damage . | . . . . . . . . Kills . | . . . . . . . . Allies Corrupted . | . . . . . . . . Allies Melted . | . . . . . . . . Intel | -11 -10 -10 -9 -8 -7 -7 -7 ------- Run | Scr Mat Min Mat Mat Fac Low Low Robot Analysis Total . | . . . . . . . . Derelict Logs Recovered . | . . . . . . . . Drone Launches 16 | . . 16 . . . . . Drone Recoveries . | . . . . . . . . Exploration | -11 -10 -10 -9 -8 -7 -7 -7 ------------- Run | Scr Mat Min Mat Mat Fac Low Low Turns Passed 6869 | 59 248 395 954 2410 457 982 1364 Spaces Moved 2405 | 42 158 224 499 863 165 363 91 Core 116 | 11 . . 14 . . . 91 Treads 1423 | . . . 36 863 165 359 . Legs 866 | 31 158 224 449 . . 4 . Wheels . | . . . . . . . . Hover . | . . . . . . . . Flight . | . . . . . . . . Fastest Speed 50 | 50 120 120 120 160 245 245 1350 Average Speed 249 | 101 120 165 130 237 245 254 1496 Slowest Speed 1500 | 120 120 190 200 250 245 425 1500 Overloaded Moves . | . . . . . . . . Propulsion Burnouts . | . . . . . . . . Robots Hopped . | . . . . . . . . Cave-ins Triggered . | . . . . . . . . Exploration Rate (%) 37 | 4 18 85 42 64 5 53 25 Regions Visited 7 Branch Regions 3 Pre-discovered Areas . | . . . . . . . . Known Exits Taken . | . . . . . . . . Unknown Exits Taken 7 | 1 1 1 1 1 1 1 . Scrap Searched . | . . . . . . . . Spaces Dug . | . . . . . . . . Terrain Destroyed 129 | . . . 43 10 47 29 . Melee . | . . . . . . . . Projectile . | . . . . . . . . AOE 129 | . . . 43 10 47 29 . Terrain Rammed . | . . . . . . . . Walls Destroyed . | . . . . . . . . Machines Disabled . | . . . . . . . . Actions | -11 -10 -10 -9 -8 -7 -7 -7 --------- Run | Scr Mat Min Mat Mat Fac Low Low Total 3077 | 58 198 250 734 1140 190 412 95 Wait 326 | 3 21 2 126 158 . 16 . Move 2398 | 41 157 223 498 862 164 362 91 Hop . | . . . . . . . . Pick Up 82 | 8 8 5 21 34 2 4 . Fast Attach 9 | . . . 9 . . . . Attach 62 | 6 3 5 15 20 3 9 1 Detach 13 | . . 2 2 4 . 5 . Swap 7 | . . 1 4 2 . . . Drop 55 | . . 10 16 17 3 6 3 Fire 122 | . 9 2 43 42 16 10 . Melee . | . . . . . . . . Ram . | . . . . . . . . Kick . | . . . . . . . . Crush 1 | . . . . 1 . . . Escape Stasis 2 | . . . . . 2 . . Rewire . | . . . . . . . . Trap . | . . . . . . . . Miscellaneous . | . . . . . . . . Route ------- -11/Scrapyard -10/Materials -10/Mines (discovered 2 exits: *Mat x2) -9/Materials (discovered 2 exits: *Mat / [*Min]) -8/Materials (discovered 2 exits: [*Fac x2]) -7/Factory (discovered 2 exits: [*Sto] / [*Low]) -7/Lower Caves -7/Lower Caves History --------- Turn | Location | Event 10 | -11/Scrapyard | Discovered new exit (range 15) 60 | -11/Scrapyard | Entered Materials 151 | -10/Materials | Repaired Aluminum Leg 177 | -10/Materials | Repaired Assault Rifle 227 | -10/Materials | Discovered new exit (range 12) 303 | -10/Materials | Build established: Mutant 308 | -10/Materials | Entered Mines 318 | -10/Mines | Found the Drone Emporium 326 | -10/Mines | Found Prototype Device 343 | -10/Mines | Identified Decoy Drone Bay 382 | -10/Mines | Met a Derelict bent on vengeance 417 | -10/Mines | Discovered new exit (range 12) 688 | -10/Mines | Discovered new exit (range 10) 703 | -10/Mines | Entered Materials 703 | -9/Materials | Evolved 2 slots: Propulsion x2 932 | -9/Materials | Discovered new exit (range 15) 1083 | -9/Materials | Repaired Aluminum Leg? 1130 | -9/Materials | Repaired Aluminum Leg 1161 | -9/Materials | Repaired Aluminum Leg? 1213 | -9/Materials | Repaired Aluminum Leg 1449 | -9/Materials | Lost 8 parts (1p4n1u2w) 1481 | -9/Materials | Discovered new exit (range 16) 1572 | -9/Materials | Core integrity fell below 50% 1657 | -9/Materials | Entered another Materials area 1657 | -8/Materials | Evolved 2 slots: Weapon x2 2250 | -8/Materials | Build established: Tank 2730 | -8/Materials | Discovered new exit (range 11) 2868 | -8/Materials | Build established: Gunner 3773 | -8/Materials | Repaired Adv. EMP Blaster 4011 | -8/Materials | Discovered new exit (range 16) 4067 | -8/Materials | Entered Factory 4067 | -7/Factory | Evolved 2 slots: Utility x2 4217 | -7/Factory | Discovered new exit (range 15) 4442 | -7/Factory | Discovered new exit (range 5) 4476 | -7/Factory | Garrison activated, responded to threat 4524 | -7/Factory | Entered Lower Caves 4890 | -7/Lower Caves | Build established: Mutant 5376 | -7/Lower Caves | Discovered new exit (range 15) 5378 | -7/Lower Caves | Attracted the attention of an 0b10 checkpoint 5506 | -7/Lower Caves | Entered another Lower Caves area 6845 | -7/Lower Caves | Core integrity fell below 50% 6861 | -7/Lower Caves | Core integrity fell below 20% 6865 | -7/Lower Caves | Lost 3 parts (1p2w) 6870 | -7/Lower Caves | Destroyed by G-47 Trooper with Particle Gun Last Messages --------------- Arm. Treads destroyed. Dropped Minigun. Dropped Adv. Assault Cannon. Acquired 46 matter. Y-54 Guardian destroyed. G-47 Trooper destroyed. LOCATION=UNKNOWN GOAL=ESCAPE Dropped Hrd. Heavy Armor Plating. Dropped Lgt. Treads. Dropped Arm. Treads. Critical hit (Burn: +37). Rocket Launcher destroyed. Critical hit (Burn: +37). Missile Launcher destroyed. Lgt. Nuclear Core destroyed. Critical hit (Burn: +37). A strange signal echoes through the caves. Critical hit (Burn: +37). [Achievement: 5k Club] Map ----- +----------------------------------------------------+ | ?????????????????????????????????????????????????? | | ?????????????????????????????????????????????????? | | ?????????????????????????????????????????????????? | | ?????????????????????????????????????????????????? | | ?????????????????????????????????????????????????? | | ?????????????????????????????????????????????????? | | ?????????????????????????????????????????????????? | | ?????????????????????????????????????????????????? | | ?????????????????????????????????????????????????? | | ?????????????????????????????????????????????????? | | ?????????????????????????????????????????????????? | | ?????????????????????????????????????????????????? | | ??????????????????!??????????????????????????????? | | ??????????????????# ?????????????????????????????? | | ?????????????????## ??????????????? ?????????????? | | ???????????????#"# ????????????? ##???????????? | | ??????????????#"" ??????????? #???????????? | | ??????????????#" ?????????? #??????????? | | ???????????????"= ????????? ??????????? | | ????????????????" ??????? ???????????? | | ????????????????? "??????# ??? ???????# | | ?????????????????? ?????# #?? ???????# | | ????????????????????" $ #???# ## #??????## | | ????????????? ??????# ##? #?????## | | ???????????# ####### ## #?????## | | ???????????# g@ #???????### | | ???????????# g #??????## | | ?????????????# ### g ##?????## | | ???????????????????## g ## #????### # | | ????????????????????### ##?##???## # | | ??????????????????????# #?????## # | | ?????????????????????## #??#### ## | | ?????????????????????# #### ### ## | | ?????????????????????# ### #?# | | ???????????????# #?# #?# ## | | ???????????????# ######?# #?# ##### | | ???????????????# ??????# #?## ???## | | ?????????????# ##?????## #??# ????# | | ?????????????# ##???????###??## ???## | | ?????????????# ## ##???????????????##????# | | ?????????????#### #?####???????????????????????# | | ????????????????# ?????????????????????????????# | | ????????????????###??????????????????????????????# | | ?????????????????????????????????????????????????# | | ?????????????????????????????????????????????????? | | ?????????????????????????????????????????????????? | | ?????????????????????????????????????????????????? | | ?????????????????????????????????????????????????? | | ?????????????????????????????????????????????????? | | ?????????????????????????????????????????????????? | +----------------------------------------------------+ Best States ------------- Heat Dissipation 44 Energy Generation 14 Energy Capacity 265 Matter Stores 300 Matter Capacity 300 Sight Range 16 Robot Scan Range 14 Terrain Scan Density 10 Armor Coverage 600 Resistance: KI 20 Resistance: TH 20 Resistance: EX 20 Resistance: EM 20 Resistance: I 20 Resistance: S 20 Resistance: P 20 Evasion (%) 55 Targeting Accuracy 8 Recoil Reduction 4 Offensive Hacking 10 Item Schematics ----------------- Lgt. Deuterium Engine | -8/Materials | Scanalyzed Heat Sink | -8/Materials | Scanalyzed Robot Schematics ------------------ None Fabricated ------------ Nothing Alien Tech Used ----------------- None Achievements -------------- 5k Club It's Just You Power Corrupts Release The Drones! Challenges ------------ None Game ------ Seed Krondor Manual? 1 Play Time 01:10:09 Cumulative 3.2 hours Start 2022.11.18 @ 21:06:10 End 2022.11.18 @ 22:50:49 Sessions 2 Manual Loads 0 Difficulty Adventurer Special Mode None Game No. 8 Rogue 5 Adventurer 3 Explorer 0 Win Type - Total 0 Types 0/0/0/0/0/0/0/0/0 Lore% 1 Gallery% 10 Achievement% 8 Wizard Run 0 Options --------- ASCII 0 Keyboard 0 Movement Mouse Keybinds 0 Fullscreen 1 Font 24/Smallcaps Map View 113x50 Tactical HUD 0 Map Filters NONE Filters NONE Steam 1 RUN: 75ac5be5-3988-4f23-b446-56f5ae8210bd